[Event "12th KIIT International 2019"]
[Site "Odisha"]
[Date "2019.06.02"]
[Round "4.6"]
[White "Siva Mahadevan"]
[Black "Khusenkhojaev, Muhammad"]
[Result "0-1"]
[ECO "C67"]
[WhiteElo "2298"]
[BlackElo "2446"]
[Annotator "ChessBase"]
[PlyCount "120"]
[EventDate "2019.01.18"]
[EventType "swiss"]
[EventCountry "IND"]
[SourceTitle "playchess.com"]
[Source "ChessBase"]
[SourceQuality "1"]
[TimeControl "5400+30"]

1. e4 {[%emt 0:00:00]} e5 {[%emt 0:00:00]} 2. Nf3 {[%emt 0:00:00]} Nc6 {[%emt 0:00:00]} 3. Bb5 {[%emt 0:00:00]} Nf6 {[%emt 0:00:00]} 4. O-O {[%emt 0:00:38]} Nxe4 {[%emt 0:00:07]} 5. Re1 {[%emt 0:00:51]} Nd6 {[%emt 0:00:07]} 6. Nxe5 {[%emt 0:00:04]} Be7 {[%emt 0:00:16]} 7. Bf1 {[%emt 0:01:16]} Nxe5 {[%emt 0:00:08]} 8. Rxe5 {[%emt 0:00:02]} O-O {[%emt 0:00:12]} 9. d4 {[%emt 0:11:05]} Bf6 {[%emt 0:00:23]} 10. Bd3 {[%emt 0:01:45]} Ne8 {[%emt 0:02:58]} 11. Re1 {[%emt 0:06:04]} d5 {[%emt 0:00:47]} 12. c3 {[%emt 0:01:03]} c6 {[%emt 0:02:07]} 13. Bf4 {[%emt 0:00:36]} g6 {[%emt 0:01:06]} 14. Nd2 {[%emt 0:00:23]} Ng7 {[%emt 0:00:49]} 15. Qb3 {[%emt 0:02:38]} Qb6 {[%emt 0:02:00]} 16. a4 {[%emt 0:05:41]} Bd7 {[%emt 0:09:30]} 17. a5 {[%emt 0:11:44]} Qxb3 {[%emt 0:01:24]} 18. Nxb3 {[%emt 0:00:02]} Ne6 {[%emt 0:05:38]} 19. Bd6 {[%emt 0:01:04]} Rfe8 {[%emt 0:00:25]} 20. f4 {[%emt 0:20:14]} Rad8 {[%emt 0:04:54]} 21. g3 {[%emt 0:15:08]} a6 {[%emt 0:02:39]} 22. Kg2 {[%emt 0:02:45]} Ng7 {[%emt 0:07:33]} 23. Nc5 {[%emt 0:02:14]} Rxe1 {[%emt 0:01:09]} 24. Rxe1 {[%emt 0:00:02]} Bc8 {[%emt 0:00:22]} 25. Be5 {[%emt 0:07:45]} Re8 {[%emt 0:00:12]} 26. Kf2 {[%emt 0:00:38]} Be7 {[%emt 0:03:25]} 27. Bxg7 {[%emt 0:05:02]} Kxg7 {[%emt 0:00:45]} 28. b4 {[%emt 0:00:10]} Kf8 {[%emt 0:00:45]} 29. Kf3 {[%emt 0:00:42]} Rd8 {[%emt 0:03:24]} 30. Re3 {[%emt 0:02:08]} Bd6 {[%emt 0:00:18]} 31. Re1 {[%emt 0:00:20]} Kg7 {[%emt 0:00:50]} 32. Re3 {[%emt 0:01:20]} Kf6 {[%emt 0:05:34]} 33. h4 {[%emt 0:01:37]} h6 {[%emt 0:02:47]} 34. Re1 {[%emt 0:00:46]} Rh8 {[%emt 0:00:53]} 35. Rh1 {[%emt 0:01:06]} Re8 {[%emt 0:00:26]} 36. Kf2 {[%emt 0:00:24]} Re7 {[%emt 0:00:32]} 37. Re1 {[%emt 0:00:39]} Rxe1 {[%emt 0:00:42]} 38. Kxe1 {[%emt 0:00:02]} g5 {[%emt 0:00:25]} 39. hxg5+ {[%emt 0:00:57]} hxg5 {[%emt 0:00:05]} 40. fxg5+ {[%emt 0:00:32]} Kxg5 {[%emt 0:00:06]} 41. Kf2 {[%emt 0:00:25]} Kg4 {[%emt 0:00:30]} 42. Be2+ {[%emt 0:00:29]} Kh3 {[%emt 0:00:15]} 43. Bf1+ {[%emt 0:00:34]} Kh2 {[%emt 0:00:22]} 44. Nd3 {[%emt 0:00:18]} Bxg3+ {[%emt 0:01:02]} 45. Kf3 {[%emt 0:00:02]} f6 {[%emt 0:02:08]} 46. Be2 {[%emt 0:01:07]} Kh3 {[%emt 0:02:29]} 47. Nf4+ {[%emt 0:00:35]} Kh2 {[%emt 0:01:05]} 48. Nd3 {[%emt 0:00:13]} Bh3 {[%emt 0:01:44]} 49. Nc5 {[%emt 0:00:22]} f5 {[%emt 0:01:07]} 50. Bd3 {[%emt 0:00:55]} Bg4+ {[%emt 0:00:17]} 51. Ke3 {[%emt 0:00:03]} f4+ {[%emt 0:00:16]} 52. Kd2 {[%emt 0:00:03]} Bc8 {[%emt 0:00:47]} 53. Ke2 {[%emt 0:00:53]} Kg2 {[%emt 0:00:18]} 54. Bc2 {[%emt 0:01:02]} f3+ {[%emt 0:00:23]} 55. Ke3 {[%emt 0:00:03]} f2 {[%emt 0:00:38]} 56. Bd3 {[%emt 0:00:04]} f1=Q {[%emt 0:00:50]} 57. Bxf1+ {[%emt 0:00:03]} Kxf1 {[%emt 0:00:06]} 58. Kd2 {[%emt 0:00:15]} Bf4+ {[%emt 0:00:34]} 59. Kc2 {[%emt 0:00:07]} Ke2 {[%emt 0:00:15]} 60. Kb2 {[%emt 0:00:25]} Bd6 {[%emt 0:00:25]} 0-1

[Event "12th KIIT International 2019"]
[Site "Odisha"]
[Date "2019.06.02"]
[Round "4.7"]
[White "Shyaamnikhil P"]
[Black "Nayak Rajesh"]
[Result "1/2-1/2"]
[ECO "B25"]
[WhiteElo "2434"]
[BlackElo "2175"]
[Annotator "ChessBase"]
[PlyCount "50"]
[EventDate "2019.01.18"]
[EventType "swiss"]
[EventCountry "IND"]
[SourceTitle "playchess.com"]
[Source "ChessBase"]
[SourceQuality "1"]
[TimeControl "5400+30"]

1. e4 {[%emt 0:00:00]} c5 {[%emt 0:02:28]} 2. Nc3 {[%emt 0:00:38]} Nc6 {[%emt 0:02:18]} 3. g3 {[%emt 0:07:36]} g6 {[%emt 0:04:18]} 4. Bg2 {[%emt 0:00:09]} Bg7 {[%emt 0:00:04]} 5. f4 {[%emt 0:00:07]} d6 {[%emt 0:01:38]} 6. Nf3 {[%emt 0:00:31]} Nf6 {[%emt 0:05:52]} 7. d3 {[%emt 0:00:30]} O-O {[%emt 0:01:36]} 8. O-O {[%emt 0:00:12]} Rb8 {[%emt 0:00:43]} 9. a4 {[%emt 0:02:49]} a6 {[%emt 0:02:02]} 10. h3 {[%emt 0:02:43]} b5 {[%emt 0:03:10]} 11. g4 {[%emt 0:06:41]} b4 {[%emt 0:07:12]} 12. Ne2 {[%emt 0:00:54]} c4 13. g5 {[%emt 0:00:30]} cxd3 14. cxd3 {[%emt 0:00:30]} Nd7 15. d4 {[%emt 0:00:30]} Na5 16. Ng3 {[%emt 0:00:30]} Bb7 17. Qd3 {[%emt 0:00:30]} Qc7 18. Rf2 {[%emt 0:00:30]} Qc4 19. Qxc4 {[%emt 0:00:30]} Nxc4 20. b3 {[%emt 0:00:30]} Na5 21. Rb1 {[%emt 0:00:30]} Rfc8 22. Bd2 {[%emt 0:00:30]} Ba8 23. Bf1 {[%emt 0:00:30]} Rb6 24. Be1 {[%emt 0:00:30]} Rc7 25. h4 {[%emt 0:00:30]} Rc8 1/2-1/2

[Event "12th KIIT International 2019"]
[Site "Odisha"]
[Date "2019.06.02"]
[Round "4.10"]
[White "Mohammad Fahad, Rahman"]
[Black "Debashis, Das"]
[Result "1/2-1/2"]
[ECO "B41"]
[WhiteElo "2305"]
[BlackElo "2544"]
[Annotator "ChessBase"]
[PlyCount "139"]
[EventDate "2019.01.18"]
[EventType "swiss"]
[EventCountry "IND"]
[SourceTitle "playchess.com"]
[Source "ChessBase"]
[SourceQuality "1"]
[TimeControl "5400+30"]

1. e4 {[%emt 0:00:00]} c5 {[%emt 0:00:11]} 2. Nf3 {[%emt 0:00:00]} e6 {[%emt 0:00:04]} 3. d4 {[%emt 0:00:06]} cxd4 {[%emt 0:00:04]} 4. Nxd4 {[%emt 0:00:07]} a6 {[%emt 0:00:01]} 5. c4 {[%emt 0:00:49]} Nf6 {[%emt 0:00:09]} 6. Nc3 {[%emt 0:00:06]} Qc7 {[%emt 0:00:03]} 7. Be2 {[%emt 0:01:14]} b6 {[%emt 0:11:37]} 8. O-O {[%emt 0:03:14]} Bb7 {[%emt 0:00:17]} 9. Qc2 {[%emt 0:15:44]} Bc5 {[%emt 0:07:33]} 10. Be3 {[%emt 0:01:57]} Nc6 {[%emt 0:01:30]} 11. Rfd1 {[%emt 0:01:48]} O-O {[%emt 0:01:08]} 12. a3 {[%emt 0:01:44]} Rac8 {[%emt 0:05:51]} 13. Nxc6 {[%emt 0:06:35]} Bxc6 {[%emt 0:01:39]} 14. Bxc5 {[%emt 0:03:05]} bxc5 {[%emt 0:00:05]} 15. b4 {[%emt 0:01:30]} Qe5 {[%emt 0:13:49]} 16. f3 {[%emt 0:02:55]} cxb4 {[%emt 0:17:37]} 17. axb4 {[%emt 0:00:02]} Rb8 {[%emt 0:00:09]} 18. Ra5 {[%emt 0:10:18]} Qc7 {[%emt 0:01:08]} 19. Rxa6 {[%emt 0:00:21]} Rxb4 {[%emt 0:00:23]} 20. Qd2 {[%emt 0:00:23]} Qe5 {[%emt 0:05:35]} 21. Qd4 {[%emt 0:02:28]} Qxd4+ {[%emt 0:06:52]} 22. Rxd4 {[%emt 0:00:09]} Rfb8 {[%emt 0:00:31]} 23. Rd2 {[%emt 0:04:03]} Kf8 {[%emt 0:01:23]} 24. Kf2 {[%emt 0:09:04]} Ke7 {[%emt 0:04:42]} 25. Ke3 {[%emt 0:08:20]} Rb3 {[%emt 0:01:13]} 26. Rd3 {[%emt 0:02:31]} R8b4 {[%emt 0:03:38]} 27. Ra2 {[%emt 0:08:09]} Ne8 {[%emt 0:04:08]} 28. Bd1 {[%emt 0:03:06]} Rb2 {[%emt 0:00:17]} 29. Rxb2 {[%emt 0:00:15]} Rxb2 {[%emt 0:00:06]} 30. Rd2 {[%emt 0:00:14]} Rb4 {[%emt 0:00:49]} 31. Be2 {[%emt 0:00:35]} Nd6 {[%emt 0:04:27]} 32. Kd4 {[%emt 0:00:52]} Rb3 {[%emt 0:00:42]} 33. Rc2 {[%emt 0:02:09]} f6 {[%emt 0:00:29]} 34. f4 {[%emt 0:02:08]} Nf7 {[%emt 0:02:12]} 35. g3 {[%emt 0:00:44]} e5+ {[%emt 0:00:24]} 36. Ke3 {[%emt 0:00:16]} Nd6 {[%emt 0:00:42]} 37. Bd3 {[%emt 0:00:20]} Nb7 {[%emt 0:00:25]} 38. Nd1 {[%emt 0:03:43]} Bxe4 {[%emt 0:01:05]} 39. Rc3 {[%emt 0:01:55]} Rxc3 {[%emt 0:00:24]} 40. Nxc3 {[%emt 0:00:04]} Bxd3 {[%emt 0:00:16]} 41. Kxd3 {[%emt 0:00:01]} Ke6 {[%emt 0:01:39]} 42. Nd5 {[%emt 0:00:45]} Nd6 {[%emt 0:01:48]} 43. fxe5 {[%emt 0:00:59]} Kxe5 {[%emt 0:00:08]} 44. Nb6 {[%emt 0:00:10]} Ke6 {[%emt 0:00:14]} 45. Kd4 {[%emt 0:00:27]} h5 {[%emt 0:00:17]} 46. Nd5 {[%emt 0:00:50]} Nf5+ {[%emt 0:01:05]} 47. Ke4 {[%emt 0:00:05]} Nd6+ {[%emt 0:00:03]} 48. Kd4 {[%emt 0:00:03]} g5 {[%emt 0:00:04]} 49. Nc7+ {[%emt 0:00:47]} Ke7 {[%emt 0:00:24]} 50. c5 {[%emt 0:01:10]} Nf5+ {[%emt 0:01:01]} 51. Ke4 {[%emt 0:00:06]} Ng7 {[%emt 0:05:09]} 52. Nd5+ {[%emt 0:00:32]} Ke6 {[%emt 0:00:00]} 53. Nc7+ {[%emt 0:00:35]} Kf7 {[%emt 0:00:00]} 54. Kd5 {[%emt 0:00:11]} Ke7 {[%emt 0:00:00]} 55. Nb5 {[%emt 0:00:23]} Ne6 {[%emt 0:00:00]} 56. c6 {[%emt 0:01:32]} dxc6+ {[%emt 0:00:00]} 57. Kxc6 {[%emt 0:00:01]} g4 {[%emt 0:00:00]} 58. Nc3 {[%emt 0:04:39]} Nd4+ {[%emt 0:03:30]} 59. Kd5 {[%emt 0:01:22]} Nf3 {[%emt 0:00:00]} 60. Ne2 {[%emt 0:00:04]} Nxh2 {[%emt 0:00:00]} 61. Nf4 {[%emt 0:00:00]} Kf7 {[%emt 0:00:19]} 62. Nxh5 {[%emt 0:00:17]} Kg6 {[%emt 0:00:04]} 63. Nf4+ {[%emt 0:00:09]} Kf5 {[%emt 0:00:09]} 64. Ne2 {[%emt 0:00:48]} Nf1 {[%emt 0:00:38]} 65. Kd4 {[%emt 0:00:16]} Nxg3 {[%emt 0:00:10]} 66. Nxg3+ {[%emt 0:00:07]} Kf4 {[%emt 0:00:01]} 67. Nh5+ {[%emt 0:01:09]} Kf3 {[%emt 0:00:05]} 68. Kd5 {[%emt 0:00:23]} g3 {[%emt 0:02:03]} 69. Nxg3 {[%emt 0:00:03]} Kxg3 {[%emt 0:00:03]} 70. Ke6 {[%emt 0:00:07]} 1/2-1/2

[Event "12th KIIT International 2019"]
[Site "Odisha"]
[Date "2019.06.02"]
[Round "4.11"]
[White "Burmakin, Vladimir"]
[Black "Neelash Saha"]
[Result "1-0"]
[ECO "A14"]
[WhiteElo "2526"]
[BlackElo "2315"]
[Annotator "ChessBase"]
[PlyCount "85"]
[EventDate "2019.01.18"]
[EventType "swiss"]
[EventCountry "IND"]
[SourceTitle "playchess.com"]
[Source "ChessBase"]
[SourceQuality "1"]
[TimeControl "5400+30"]

1. Nf3 {[%emt 0:00:00]} Nf6 {[%emt 0:03:54]} 2. g3 {[%emt 0:00:26]} d5 {[%emt 0:00:50]} 3. Bg2 {[%emt 0:00:08]} e6 {[%emt 0:00:52]} 4. c4 {[%emt 0:00:24]} Be7 {[%emt 0:00:08]} 5. O-O {[%emt 0:00:08]} O-O {[%emt 0:00:04]} 6. Qc2 {[%emt 0:00:15]} d4 {[%emt 0:00:06]} 7. e3 {[%emt 0:00:15]} c5 {[%emt 0:00:05]} 8. exd4 {[%emt 0:00:41]} cxd4 {[%emt 0:00:04]} 9. d3 {[%emt 0:00:18]} Nc6 {[%emt 0:00:04]} 10. a3 {[%emt 0:00:07]} a5 {[%emt 0:00:05]} 11. Re1 {[%emt 0:00:13]} Nd7 {[%emt 0:00:06]} 12. Nbd2 {[%emt 0:03:37]} a4 {[%emt 0:04:59]} 13. b4 {[%emt 0:00:58]} axb3 {[%emt 0:00:05]} 14. Nxb3 {[%emt 0:00:13]} Nc5 {[%emt 0:00:04]} 15. Bd2 {[%emt 0:05:28]} Nxb3 {[%emt 0:11:02]} 16. Qxb3 {[%emt 0:00:04]} Qc7 {[%emt 0:00:05]} 17. Bb4 {[%emt 0:02:22]} Rd8 {[%emt 0:08:47]} 18. Rab1 {[%emt 0:03:57]} Ra6 {[%emt 0:17:31]} 19. Nd2 {[%emt 0:03:15]} Rb6 {[%emt 0:04:27]} 20. Ba5 {[%emt 0:03:22]} Rxb3 {[%emt 0:00:08]} 21. Bxc7 {[%emt 0:00:07]} Rxb1 {[%emt 0:00:03]} 22. Rxb1 {[%emt 0:00:53]} Rd7 {[%emt 0:00:40]} 23. Bb6 {[%emt 0:00:37]} Ne5 {[%emt 0:11:34]} 24. Rb3 {[%emt 0:00:20]} g5 {[%emt 0:04:04]} 25. a4 {[%emt 0:07:39]} f5 {[%emt 0:05:24]} 26. a5 {[%emt 0:01:10]} g4 {[%emt 0:03:45]} 27. f4 {[%emt 0:05:28]} gxf3 {[%emt 0:00:23]} 28. Nxf3 {[%emt 0:00:09]} Nc6 {[%emt 0:00:04]} 29. Rb5 {[%emt 0:01:34]} Bf6 {[%emt 0:05:50]} 30. Rc5 {[%emt 0:02:41]} Be7 {[%emt 0:01:11]} 31. Rxc6 {[%emt 0:17:34]} bxc6 {[%emt 0:00:17]} 32. Ne5 {[%emt 0:00:03]} Bf6 {[%emt 0:02:43]} 33. Nxd7 {[%emt 0:01:32]} Bxd7 {[%emt 0:00:01]} 34. a6 {[%emt 0:02:13]} Bc8 {[%emt 0:00:04]} 35. a7 {[%emt 0:00:03]} Bb7 {[%emt 0:00:03]} 36. Bf3 {[%emt 0:00:10]} Kf7 {[%emt 0:01:04]} 37. g4 {[%emt 0:00:37]} Kg6 {[%emt 0:00:54]} 38. gxf5+ {[%emt 0:00:13]} exf5 {[%emt 0:00:04]} 39. Bc7 {[%emt 0:03:27]} Be7 {[%emt 0:01:29]} 40. Kg2 {[%emt 0:00:18]} h5 {[%emt 0:01:37]} 41. Kg3 {[%emt 0:01:22]} Bg5 {[%emt 0:01:12]} 42. Be5 {[%emt 0:01:53]} f4+ {[%emt 0:07:08]} 43. Kg2 {[%emt 0:00:47]} 1-0

[Event "12th KIIT International 2019"]
[Site "Odisha"]
[Date "2019.06.02"]
[Round "4.12"]
[White "Konguvel, Ponnuswamy"]
[Black "Malakhatko, Vadim"]
[Result "1/2-1/2"]
[ECO "C10"]
[WhiteElo "2293"]
[BlackElo "2505"]
[Annotator "ChessBase"]
[PlyCount "69"]
[EventDate "2019.01.18"]
[EventType "swiss"]
[EventCountry "IND"]
[SourceTitle "playchess.com"]
[Source "ChessBase"]
[SourceQuality "1"]
[TimeControl "5400+30"]

1. e4 {[%emt 0:00:00]} e6 {[%emt 0:00:00]} 2. d4 {[%emt 0:00:05]} d5 {[%emt 0:00:00]} 3. Nc3 {[%emt 0:00:13]} h6 {[%emt 0:00:00]} 4. Bd3 {[%emt 0:05:21]} Nc6 {[%emt 0:00:03]} 5. Nf3 {[%emt 0:00:27]} Nb4 {[%emt 0:00:07]} 6. Bb5+ {[%emt 0:02:49]} c6 {[%emt 0:00:09]} 7. Be2 {[%emt 0:00:34]} Nf6 {[%emt 0:00:25]} 8. e5 {[%emt 0:01:07]} Ne4 {[%emt 0:01:24]} 9. a3 {[%emt 0:00:15]} Nxc3 {[%emt 0:00:17]} 10. bxc3 {[%emt 0:00:05]} Na6 {[%emt 0:00:04]} 11. O-O {[%emt 0:02:29]} Nc7 {[%emt 0:00:27]} 12. a4 {[%emt 0:07:11]} b6 {[%emt 0:00:53]} 13. Nd2 {[%emt 0:03:07]} Ba6 {[%emt 0:07:37]} 14. c4 {[%emt 0:07:00]} Bb4 {[%emt 0:01:48]} 15. cxd5 {[%emt 0:06:22]} Bxe2 {[%emt 0:00:20]} 16. Qxe2 {[%emt 0:00:04]} cxd5 {[%emt 0:00:11]} 17. Qd3 {[%emt 0:04:52]} O-O {[%emt 0:02:04]} 18. Ba3 {[%emt 0:02:42]} Bxa3 {[%emt 0:01:08]} 19. Rxa3 {[%emt 0:00:04]} Rc8 {[%emt 0:00:07]} 20. a5 {[%emt 0:04:10]} b5 {[%emt 0:09:57]} 21. a6 {[%emt 0:01:22]} Qe7 {[%emt 0:01:40]} 22. Rfa1 {[%emt 0:01:01]} Rb8 {[%emt 0:03:59]} 23. Nb3 {[%emt 0:01:22]} f6 {[%emt 0:09:36]} 24. exf6 {[%emt 0:04:50]} Qxf6 {[%emt 0:05:41]} 25. Qe3 {[%emt 0:00:04]} Qf4 {[%emt 0:09:11]} 26. Nc5 {[%emt 0:00:59]} Qxe3 {[%emt 0:00:28]} 27. Rxe3 {[%emt 0:02:19]} Rf4 {[%emt 0:01:27]} 28. c3 {[%emt 0:07:52]} Rb6 {[%emt 0:02:42]} 29. g3 {[%emt 0:07:20]} Rf7 {[%emt 0:00:22]} 30. f4 {[%emt 0:00:17]} b4 {[%emt 0:01:58]} 31. cxb4 {[%emt 0:08:31]} Rxb4 {[%emt 0:00:06]} 32. Rd1 {[%emt 0:00:16]} Rb6 {[%emt 0:00:54]} 33. Ra1 {[%emt 0:02:29]} Rb4 {[%emt 0:02:16]} 34. Rd1 {[%emt 0:01:50]} Rb6 {[%emt 0:00:09]} 35. Ra1 {[%emt 0:00:07]} 1/2-1/2

[Event "12th KIIT International 2019"]
[Site "Odisha"]
[Date "2019.06.02"]
[Round "4.13"]
[White "Neverov, Valeriy"]
[Black "Raahul V S"]
[Result "1-0"]
[ECO "D30"]
[WhiteElo "2495"]
[BlackElo "2292"]
[Annotator "ChessBase"]
[PlyCount "103"]
[EventDate "2019.01.18"]
[EventType "swiss"]
[EventCountry "IND"]
[SourceTitle "playchess.com"]
[Source "ChessBase"]
[SourceQuality "1"]
[TimeControl "5400+30"]

1. d4 {[%emt 0:00:00]} d5 {[%emt 0:00:00]} 2. c4 {[%emt 0:00:00]} c6 {[%emt 0:00:00]} 3. Nf3 {[%emt 0:00:51]} Nf6 {[%emt 0:00:00]} 4. e3 {[%emt 0:02:18]} e6 {[%emt 0:00:00]} 5. Nbd2 {[%emt 0:07:25]} Nbd7 {[%emt 0:01:24]} 6. Bd3 {[%emt 0:10:43]} Bd6 {[%emt 0:00:59]} 7. b3 {[%emt 0:01:35]} e5 {[%emt 0:02:13]} 8. cxd5 {[%emt 0:02:40]} cxd5 {[%emt 0:00:11]} 9. dxe5 {[%emt 0:01:56]} Nxe5 {[%emt 0:00:02]} 10. Bb5+ {[%emt 0:00:51]} Bd7 {[%emt 0:00:26]} 11. Bxd7+ {[%emt 0:00:29]} Qxd7 {[%emt 0:00:08]} 12. O-O {[%emt 0:00:13]} Nd3 13. Qe2 {[%emt 0:21:27]} Nxc1 {[%emt 0:01:22]} 14. Raxc1 {[%emt 0:02:52]} O-O {[%emt 0:00:10]} 15. Nb1 {[%emt 0:06:16]} Rac8 {[%emt 0:02:32]} 16. Qb2 {[%emt 0:00:42]} Rxc1 {[%emt 0:05:23]} 17. Rxc1 {[%emt 0:00:12]} Rc8 {[%emt 0:00:09]} 18. Nc3 {[%emt 0:03:35]} Bb4 {[%emt 0:03:42]} 19. Ne2 {[%emt 0:04:48]} Ne4 {[%emt 0:04:50]} 20. Ne5 {[%emt 0:07:11]} Qf5 {[%emt 0:03:02]} 21. Rxc8+ {[%emt 0:11:27]} Qxc8 {[%emt 0:00:31]} 22. Nd3 {[%emt 0:03:46]} Be7 {[%emt 0:04:16]} 23. f3 {[%emt 0:04:17]} Bf6 {[%emt 0:00:32]} 24. Qc1 {[%emt 0:00:44]} Qxc1+ {[%emt 1:10:08]} 25. Ndxc1 {[%emt 0:06:12]} Nc5 {[%emt 0:00:00]} 26. Nf4 {[%emt 0:00:00]} d4 {[%emt 0:00:00]} 27. e4 {[%emt 0:00:00]} Bg5 {[%emt 0:00:00]} 28. Ncd3 {[%emt 0:00:00]} Bxf4 {[%emt 0:00:00]} 29. Nxc5 {[%emt 0:00:00]} b6 {[%emt 0:00:00]} 30. Nd3 {[%emt 0:00:00]} Bc7 {[%emt 0:00:00]} 31. Kf2 {[%emt 0:00:00]} Kf8 {[%emt 0:00:00]} 32. h3 {[%emt 0:01:37]} Ke7 {[%emt 0:00:00]} 33. Ke2 {[%emt 0:01:03]} Bd6 {[%emt 0:00:00]} 34. Ne1 {[%emt 0:00:43]} Ke6 {[%emt 0:00:00]} 35. Nc2 {[%emt 0:00:56]} Ke5 {[%emt 0:00:00]} 36. Kd3 {[%emt 0:00:03]} Bc5 {[%emt 0:00:00]} 37. b4 {[%emt 0:00:24]} Kf4 {[%emt 0:00:00]} 38. bxc5 {[%emt 0:00:36]} bxc5 {[%emt 0:00:00]} 39. Ke2 {[%emt 0:00:56]} Kg3 {[%emt 0:00:00]} 40. Kf1 {[%emt 0:00:28]} f6 {[%emt 0:00:00]} 41. Na3 {[%emt 0:00:25]} a6 {[%emt 0:00:00]} 42. Nc4 {[%emt 0:00:06]} g6 {[%emt 0:00:00]} 43. a4 {[%emt 0:00:34]} h5 {[%emt 0:00:00]} 44. a5 {[%emt 0:00:43]} g5 {[%emt 0:00:00]} 45. e5 {[%emt 0:00:46]} fxe5 {[%emt 0:00:00]} 46. Nxe5 {[%emt 0:00:03]} Kf4 {[%emt 0:00:00]} 47. Nd3+ {[%emt 0:00:19]} Ke3 {[%emt 0:00:00]} 48. Nxc5 {[%emt 0:00:08]} d3 {[%emt 0:00:00]} 49. Ke1 {[%emt 0:01:16]} d2+ {[%emt 0:00:00]} 50. Kd1 {[%emt 0:00:04]} Kf2 {[%emt 0:00:00]} 51. Nxa6 {[%emt 0:00:58]} Kxg2 {[%emt 0:00:00]} 52. Nc5 {[%emt 0:00:22]} 1-0

[Event "12th KIIT International 2019"]
[Site "Odisha"]
[Date "2019.06.02"]
[Round "4.14"]
[White "Patil, Pratik"]
[Black "Rahman, Ziaur"]
[Result "1/2-1/2"]
[ECO "B08"]
[WhiteElo "2184"]
[BlackElo "2481"]
[Annotator "ChessBase"]
[PlyCount "62"]
[EventDate "2019.01.18"]
[EventType "swiss"]
[EventCountry "IND"]
[SourceTitle "playchess.com"]
[Source "ChessBase"]
[SourceQuality "1"]
[TimeControl "5400+30"]

1. e4 {[%emt 0:00:00]} g6 {[%emt 0:00:27]} 2. d4 {[%emt 0:00:00]} Bg7 {[%emt 0:00:05]} 3. Nc3 {[%emt 0:00:02]} d6 {[%emt 0:00:20]} 4. Nf3 {[%emt 0:01:36]} Nf6 {[%emt 0:00:22]} 5. h3 {[%emt 0:00:19]} O-O {[%emt 0:01:02]} 6. Be3 {[%emt 0:00:20]} a6 {[%emt 0:00:42]} 7. a4 {[%emt 0:00:25]} b6 {[%emt 0:01:13]} 8. Bd3 {[%emt 0:13:02]} Bb7 {[%emt 0:00:31]} 9. O-O {[%emt 0:00:41]} Nbd7 {[%emt 0:00:55]} 10. Re1 {[%emt 0:02:44]} e5 {[%emt 0:03:53]} 11. Qd2 {[%emt 0:09:45]} exd4 {[%emt 0:02:50]} 12. Nxd4 {[%emt 0:03:50]} Nc5 {[%emt 0:06:14]} 13. Bh6 {[%emt 0:03:03]} Re8 {[%emt 0:01:22]} 14. Bxg7 {[%emt 0:05:15]} Kxg7 {[%emt 0:00:18]} 15. f3 {[%emt 0:00:37]} d5 {[%emt 0:09:11]} 16. exd5 {[%emt 0:11:30]} Rxe1+ {[%emt 0:11:57]} 17. Rxe1 {[%emt 0:01:11]} Nxd5 {[%emt 0:02:00]} 18. Bc4 {[%emt 0:12:06]} Nxc3 {[%emt 0:05:06]} 19. Qxc3 {[%emt 0:00:04]} Kg8 {[%emt 0:00:42]} 20. Re5 {[%emt 0:15:15]} Qf6 {[%emt 0:02:16]} 21. Qe3 {[%emt 0:02:40]} Rd8 {[%emt 0:06:06]} 22. c3 {[%emt 0:00:11]} Rf8 {[%emt 0:06:04]} 23. Re7 {[%emt 0:03:30]} Bc8 {[%emt 0:06:18]} 24. Rxf7 {[%emt 0:06:57]} Rxf7 {[%emt 0:00:25]} 25. Qe8+ {[%emt 0:00:02]} Kg7 {[%emt 0:00:05]} 26. Bxf7 {[%emt 0:00:12]} Qxf7 {[%emt 0:01:43]} 27. Qxc8 {[%emt 0:00:06]} Qf4 {[%emt 0:04:05]} 28. Ne6+ {[%emt 0:04:55]} Nxe6 {[%emt 0:00:06]} 29. Qxe6 {[%emt 0:00:04]} Qc1+ {[%emt 0:00:22]} 30. Kh2 {[%emt 0:00:03]} Qf4+ {[%emt 0:00:07]} 31. Kg1 {[%emt 0:00:21]} Qc1+ {[%emt 0:00:05]} 1/2-1/2